bitfinex/quotes_BTCUSD_20241120
["timestamp","ask_amount","ask_price","bid_price","bid_amount"]
[1732115595647,0.0782,94312.0,94289.0,0.1]
[1732115595893,0.0782,94312.0,94291.0,0.1]
[1732115596125,0.0782,94312.0,94293.0,0.1]
[1732115596369,0.0782,94312.0,94268.0,0.002]
[1732115596370,0.0782,94312.0,94295.0,0.1]
[1732115596603,0.0782,94312.0,94297.0,0.1]
[1732115596864,0.0782,94312.0,94299.0,0.1]
[1732115597071,0.079909,94312.0,94301.0,0.1]
[1732115597304,0.079909,94312.0,94303.0,0.1]
[1732115597790,0.079909,94312.0,94281.0,0.0008545]
[1732115598041,0.023,94311.0,94282.0,0.10711512]
[1732115598269,0.079909,94312.0,94282.0,0.22434512]
[1732115598527,0.079909,94312.0,94283.0,0.395307]
[1732115598740,0.079909,94312.0,94284.0,0.10711512]
[1732115598966,0.079909,94312.0,94291.0,0.10711512]
[1732115599191,0.034909,94312.0,94292.0,1.204149]
[1732115599419,0.034909,94312.0,94293.0,0.10711512]
[1732115599666,0.034909,94312.0,94294.0,0.1]
[1732115599915,0.034909,94312.0,94295.0,0.10711512]
[1732115600171,0.034909,94312.0,94296.0,0.1]
[1732115600384,0.034909,94312.0,94298.0,0.094901]
[1732115600622,0.034909,94312.0,94299.0,0.10711512]
[1732115600884,0.001709,94312.0,94309.0,0.10711512]
[1732115601217,0.001709,94312.0,94298.0,0.094901]
[1732115601218,0.001709,94312.0,94311.0,0.10711512]
[1732115601429,0.001709,94312.0,94311.0,0.96939112]
[1732115601656,0.001709,94312.0,94311.0,0.10711512]
[1732115602538,0.001709,94312.0,94311.0,0.20711512]
[1732115602665,0.001709,94312.0,94311.0,0.20817527]
[1732115602882,0.001709,94312.0,94311.0,0.20711512]
[1732115603082,0.001709,94312.0,94311.0,0.24114596]
[1732115603282,0.001709,94312.0,94311.0,0.20711512]
[1732115603508,0.001709,94312.0,94311.0,0.42938512]
[1732115603750,0.001709,94312.0,94311.0,0.32604312]
[1732115604154,0.001709,94312.0,94311.0,0.33604312]
[1732115604355,0.001709,94312.0,94311.0,0.34604312]
[1732115604726,0.001709,94312.0,94311.0,0.34804312]
[1732115604922,0.001709,94312.0,94311.0,0.34604312]
[1732115605130,0.001709,94312.0,94311.0,0.34804312]
[1732115605726,0.001709,94312.0,94311.0,0.37104312]
[1732115606376,0.0825,94365.0,94338.0,0.01]
[1732115606608,0.0825,94365.0,94348.0,0.10711512]
[1732115607028,0.0825,94365.0,94349.0,0.1]
[1732115607244,0.0825,94365.0,94351.0,0.1]
[1732115607502,0.0825,94365.0,94352.0,0.10711512]
[1732115607706,0.0825,94365.0,94353.0,0.1]
[1732115607923,0.0825,94365.0,94355.0,0.1]
[1732115608137,0.0825,94365.0,94356.0,0.10711512]
[1732115608355,0.0499,94368.0,94359.0,0.1]
[1732115608568,0.0808,94381.0,94364.0,0.1]
[1732115608783,0.0808,94381.0,94366.0,0.1]
[1732115608997,0.0808,94381.0,94367.0,0.10711512]
[1732115609208,0.0808,94381.0,94368.0,0.1]
[1732115609420,0.0808,94381.0,94369.0,0.10711512]
[1732115609627,0.0808,94381.0,94370.0,0.1]
[1732115609840,0.0808,94381.0,94371.0,0.10711512]
[1732115610256,0.0808,94381.0,94372.0,0.1]
[1732115610488,0.0808,94381.0,94374.0,0.1]
[1732115610904,0.0808,94381.0,94376.0,0.1]
[1732115611108,0.0808,94381.0,94378.0,0.1]
[1732115611355,0.0808,94381.0,94379.0,0.10711512]
[1732115611560,0.0808,94381.0,94378.0,0.1]
[1732115611767,0.0808,94381.0,94312.0,0.23157622]
[1732115611768,0.0808,94381.0,94350.0,0.03444855]
[1732115611979,0.0808,94381.0,94368.0,0.1]
[1732115612186,0.0808,94381.0,94344.0,0.01]
[1732115612187,0.0808,94381.0,94370.0,0.1]
[1732115612401,0.0808,94381.0,94360.0,0.1]
[1732115612621,0.023,94380.0,94362.0,0.1]
[1732115612831,0.023,94380.0,94364.0,0.1]
[1732115613037,0.023,94380.0,94364.0,0.20711512]
[1732115613457,0.023,94380.0,94364.0,0.1]
[1732115613898,0.023,94380.0,94354.0,0.03434546]
[1732115614124,0.023,94380.0,94355.0,0.10711512]
[1732115614336,0.0808,94381.0,94355.0,0.10711512]
[1732115614337,0.0588,94381.0,94355.0,0.10711512]
[1732115614555,0.0469,94380.0,94356.0,0.10711512]
[1732115615647,0.11711512,94379.0,94328.0,0.01]
[1732115615851,0.0469,94380.0,94328.0,0.01]
[1732115615852,0.0469,94380.0,94337.0,0.1]
[1732115616052,0.0469,94380.0,94328.0,0.01]
[1732115616053,0.0469,94380.0,94339.0,0.1]
[1732115616258,0.0469,94380.0,94341.0,0.1]
[1732115616465,0.0469,94380.0,94343.0,0.1]
[1732115616666,0.01,94378.0,94344.0,0.10711512]
[1732115616922,0.04263938,94377.0,94345.0,0.1]
[1732115617152,0.01963938,94376.0,94347.0,0.1]
[1732115617382,0.01963938,94375.0,94349.0,0.1]
[1732115617604,0.01963938,94375.0,94321.0,0.01]
[1732115617605,0.01963938,94375.0,94351.0,0.1]
[1732115617820,0.01963938,94374.0,94353.0,0.1]
[1732115618045,0.01963938,94373.0,94355.0,0.1]
[1732115618263,0.023,94379.0,94355.0,0.1]
[1732115618488,0.023,94377.0,94322.0,0.03513092]
[1732115618721,0.01963621,94376.0,94330.0,0.1]
[1732115619139,0.023,94375.0,94332.0,0.1]
[1732115619141,0.04263621,94375.0,94332.0,0.1]
[1732115619380,0.04263621,94375.0,94334.0,0.1]
[1732115619381,0.01963621,94374.0,94334.0,0.1]
[1732115619612,0.01963621,94373.0,94336.0,0.1]
[1732115619870,0.023,94375.0,94336.0,0.1]
[1732115619871,0.01963621,94372.0,94338.0,0.1]
[1732115620117,0.023,94375.0,94340.0,0.1]
[1732115620118,0.01963621,94371.0,94340.0,0.1]
[1732115620355,0.01963621,94370.0,94341.0,0.10711512]
[1732115620600,0.023,94376.0,94342.0,0.1]
[1732115620826,0.033,94374.0,94344.0,0.1]
[1732115621068,0.023,94372.0,94344.0,0.20711512]
[1732115621299,0.01964513,94371.0,94344.0,0.20711512]
[1732115621535,0.023,94359.0,94321.0,0.03353983]
[1732115621780,0.023,94359.0,94312.0,0.0017152]
[1732115621781,0.01964513,94358.0,94322.0,0.10711512]
[1732115622031,0.01964513,94357.0,94322.0,0.10711512]
[1732115622257,0.05264513,94356.0,94322.0,0.10711512]
[1732115622490,0.023,94350.0,94316.0,0.00106015]
[1732115622753,0.13011512,94350.0,94317.0,0.10711512]
[1732115622981,0.13011512,94350.0,94313.0,0.10711512]
[1732115622982,0.023,94344.0,94313.0,0.10711512]
[1732115623216,0.0474,94349.0,94313.0,0.10711512]
[1732115623450,0.04266444,94348.0,94313.0,0.10711512]
[1732115623679,0.01966444,94347.0,94314.0,0.1]
[1732115623925,0.01966444,94346.0,94316.0,0.1]
[1732115624176,0.023,94348.0,94318.0,0.1]
[1732115624177,0.01966444,94345.0,94318.0,0.1]
[1732115624435,0.01966444,94344.0,94320.0,0.1]
[1732115624679,0.023,94348.0,94322.0,0.1]
[1732115624910,0.01967262,94347.0,94324.0,0.1]
[1732115625142,0.01967262,94346.0,94326.0,0.1]
[1732115625411,0.0474,94349.0,94326.0,0.1]
[1732115625667,0.0474,94349.0,94328.0,0.1]
[1732115625668,0.01967255,94345.0,94328.0,0.1]
[1732115625893,0.0474,94349.0,94329.0,0.10711512]
[1732115626124,0.0474,94349.0,94330.0,0.10106004]
[1732115626387,0.0802,94360.0,94335.0,0.18669359]
[1732115626646,0.0802,94360.0,94341.0,0.28669359]
[1732115626959,0.0802,94360.0,94322.0,0.41349713]
[1732115626960,0.0802,94360.0,94343.0,0.1]
[1732115627208,0.0802,94360.0,94345.0,0.1]
[1732115627460,0.0802,94360.0,94346.0,0.10711512]
[1732115627730,0.0452,94367.0,94347.0,1.400922]
[1732115628013,0.0452,94367.0,94349.0,0.18669359]
[1732115628246,0.0452,94367.0,94351.0,0.1]
[1732115628481,0.0452,94367.0,94353.0,0.1]
[1732115628731,0.0452,94367.0,94355.0,0.1]
[1732115628971,0.0452,94367.0,94357.0,0.1]
[1732115629211,0.01989983,94367.0,94359.0,0.1]
[1732115629436,0.01989983,94367.0,94360.0,0.10711512]
[1732115630478,0.00171,94383.0,94361.0,0.972409]
[1732115630737,0.00171,94383.0,94363.0,0.1]
[1732115630978,0.00171,94383.0,94365.0,0.1]
[1732115631209,0.00171,94383.0,94367.0,0.1]
[1732115631433,0.00171,94383.0,94369.0,0.1]
[1732115631664,0.00171,94383.0,94371.0,0.1]
[1732115633377,0.00171,94383.0,94345.0,0.28283517]
[1732115633378,0.00171,94383.0,94354.0,0.1]
[1732115633603,0.00171,94383.0,94356.0,0.1]
[1732115633833,0.00171,94383.0,94356.0,0.20711512]
[1732115634281,0.023,94382.0,94356.0,0.1]
[1732115634540,0.076,94378.0,94349.0,0.03389702]
[1732115634767,0.023,94377.0,94350.0,0.10711512]
[1732115635463,0.023,94377.0,94350.0,0.2956719]
[1732115635687,0.076,94378.0,94351.0,0.1]
[1732115635929,0.076,94378.0,94352.0,0.2956719]
[1732115636152,0.076,94378.0,94353.0,0.1]
[1732115636380,0.076,94378.0,94354.0,0.2956719]
[1732115636609,0.076,94378.0,94355.0,0.1]
[1732115636837,0.076,94378.0,94356.0,0.10711512]
[1732115637293,0.076,94378.0,94357.0,0.1]
[1732115637533,0.01,94372.0,94351.0,0.18855678]
[1732115637768,0.01,94372.0,94348.0,0.23569598]
[1732115637769,0.023,94369.0,94344.0,0.03520603]
[1732115637995,0.023,94366.0,94344.0,0.03520603]
[1732115638252,0.023,94366.0,94342.0,0.001714]
[1732115638521,0.023,94373.0,94343.0,0.10711512]
[1732115638765,0.0467,94376.0,94344.0,0.18855678]
[1732115638989,0.0467,94376.0,94349.0,0.1]
[1732115639208,0.0467,94376.0,94352.0,0.1]
[1732115639508,0.0467,94376.0,94354.0,0.1]
[1732115639730,0.0467,94376.0,94357.0,0.18883759]
[1732115639978,0.0467,94376.0,94354.0,0.1]
[1732115639979,0.076,94378.0,94363.0,0.18883759]
[1732115640205,0.0008576,94381.0,94367.0,0.1]
[1732115640432,0.0008576,94381.0,94370.0,0.1]
[1732115641639,0.0008576,94381.0,94364.0,0.28883759]
[1732115641863,0.0008576,94381.0,94364.0,0.1]
[1732115642358,0.0008576,94381.0,94366.0,0.1]
[1732115642607,0.0008576,94381.0,94365.0,0.29606319]
[1732115642608,0.0008576,94381.0,94368.0,0.1]
[1732115642837,0.0008576,94381.0,94371.0,0.1]
[1732115643558,0.0008576,94381.0,94371.0,0.28894807]
[1732115643818,0.0008576,94381.0,94373.0,0.1]
[1732115644063,0.0008576,94381.0,94371.0,0.1]
[1732115644319,0.0365676,94391.0,94371.0,0.1]
[1732115644774,0.13011512,94390.0,94367.0,0.1]
[1732115645012,0.13011512,94390.0,94366.0,0.1]
[1732115645488,0.13011512,94390.0,94368.0,0.1]
[1732115645710,0.0365676,94391.0,94368.0,0.1]
[1732115645996,0.023,94390.0,94370.0,0.1]
[1732115646226,0.023,94390.0,94368.0,0.28894807]
[1732115646460,0.023,94390.0,94370.0,0.1]
[1732115647104,0.13011512,94390.0,94370.0,0.2892772]
[1732115647562,0.13097212,94390.0,94372.0,0.1]
[1732115648023,0.023,94382.0,94366.0,0.1892772]
[1732115648258,0.023,94373.0,94361.0,0.18933616]
[1732115648520,0.023,94364.0,94331.0,0.2839158]
[1732115648768,0.10711512,94363.0,94328.0,0.2839158]
[1732115649005,0.10711512,94363.0,94324.0,0.2839158]
[1732115649006,0.023,94362.0,94324.0,0.2839158]
[1732115649225,0.023,94360.0,94324.0,0.2839158]
[1732115649472,0.5399,94376.0,94318.0,0.2839158]
[1732115649473,0.023,94356.0,94318.0,0.2839158]
[1732115649798,0.023,94356.0,94298.0,0.012]
[1732115649799,0.023,94354.0,94319.0,0.00106011]
[1732115650006,0.13011512,94354.0,94319.0,0.00106011]
[1732115650421,0.13011512,94354.0,94312.0,0.0017152]
[1732115650422,0.10711512,94353.0,94312.0,0.0017152]
[1732115650638,0.033,94352.0,94312.0,0.0017152]
[1732115650855,0.023,94346.0,94312.0,0.0017152]
[1732115651087,0.023,94344.0,94312.0,0.0017152]
[1732115651309,0.13011512,94344.0,94324.0,0.03429889]
[1732115651542,0.03472835,94354.0,94312.0,0.0017152]
[1732115651543,0.14011512,94343.0,94312.0,0.0017152]
[1732115651756,0.023,94332.0,94312.0,0.0017152]
[1732115651959,0.023,94330.0,94312.0,0.0017152]
[1732115653499,0.10711512,94330.0,94312.0,0.0017152]
[1732115653798,0.01,94345.0,94313.0,0.10711512]
[1732115654030,0.26,94347.0,94314.0,0.10106016]
[1732115654031,0.25,94347.0,94314.0,0.10106016]
[1732115654279,0.25,94347.0,94316.0,0.1]
[1732115654529,0.25,94347.0,94318.0,0.1]
[1732115654759,0.25,94347.0,94319.0,0.57228112]
[1732115655009,0.25,94347.0,94320.0,0.483496]
[1732115655241,0.25,94347.0,94320.0,0.1]
[1732115655496,0.023,94340.0,94320.0,0.1]
[1732115655711,0.10711512,94339.0,94320.0,0.1]
[1732115655931,0.023,94338.0,94315.0,0.1]
[1732115656144,0.13011512,94338.0,94312.0,0.0017152]
[1732115657315,0.033,94336.0,94312.0,0.0017152]
[1732115657553,0.023,94334.0,94312.0,0.0017152]
[1732115657782,0.023,94329.0,94312.0,0.0017152]
[1732115658005,0.023,94319.0,94312.0,0.0017152]
[1732115658230,0.23561512,94328.0,94293.0,0.18925407]
[1732115658231,0.023,94314.0,94293.0,0.18925407]
[1732115658452,0.023,94309.0,94291.0,0.0008542]
[1732115658673,0.023,94307.0,94291.0,0.0008542]
[1732115658969,0.01,94301.0,94291.0,0.0008542]
[1732115659190,0.011,94294.0,94263.0,0.18925407]
[1732115659409,0.011,94294.0,94247.0,0.0117122]
[1732115659410,0.01,94290.0,94249.0,0.18925407]
[1732115659631,0.01,94290.0,94247.0,0.0017122]
[1732115659632,0.10711512,94289.0,94247.0,0.0017122]
[1732115659858,0.10711512,94289.0,94250.0,0.10711512]
[1732115660075,0.10711512,94289.0,94254.0,0.01]
[1732115660316,0.10711512,94289.0,94247.0,0.19096627]
[1732115660317,0.10711512,94289.0,94255.0,0.10711512]
[1732115660536,0.10711512,94289.0,94248.0,0.226817]
[1732115660760,0.5499,94290.0,94257.0,0.01]
[1732115660761,0.5399,94290.0,94257.0,0.01]
[1732115660979,0.10711512,94288.0,94259.0,0.1]
[1732115661203,0.5399,94290.0,94261.0,0.01]
[1732115661449,0.5399,94290.0,94270.0,0.01]
[1732115661695,0.1251,94293.0,94270.0,0.01]
[1732115661696,0.1251,94293.0,94272.0,0.1]
[1732115661930,0.23221512,94293.0,94272.0,0.1]
[1732115662150,0.10711512,94292.0,94253.0,0.01]
[1732115662368,0.10711512,94292.0,94255.0,0.1]
[1732115662592,0.10711512,94292.0,94257.0,0.1]
[1732115662814,0.10711512,94292.0,94259.0,0.1]
[1732115663032,0.10711512,94292.0,94261.0,0.1]
[1732115663704,0.10711512,94292.0,94247.0,0.036404]
[1732115663705,0.1251,94293.0,94270.0,0.0017146]
[1732115664175,0.1251,94293.0,94271.0,0.10711512]
[1732115664410,0.25,94311.0,94271.0,0.10711512]
[1732115664411,0.25,94311.0,94280.0,0.01]
[1732115664637,0.0751,94314.0,94283.0,0.01]
[1732115664868,0.0751,94314.0,94284.0,1.05957112]
[1732115665087,0.0751,94314.0,94285.0,0.205395]
[1732115665344,0.0751,94314.0,94286.0,0.21384812]
[1732115665577,0.0751,94314.0,94288.0,0.1]
[1732115666705,0.0751,94314.0,94290.0,0.1]
[1732115666923,0.0751,94314.0,94292.0,0.1]
[1732115667140,0.10711512,94313.0,94292.0,0.1]
[1732115667587,0.10711512,94313.0,94270.0,0.0017146]
[1732115667588,0.01,94312.0,94270.0,0.0017146]
[1732115667810,0.10711512,94311.0,94270.0,0.0017146]
[1732115668060,0.01,94305.0,94270.0,0.0017146]
[1732115668297,0.10711512,94304.0,94270.0,0.0017146]
[1732115668519,0.10711512,94304.0,94271.0,1.25914212]
[1732115668743,0.10711512,94304.0,94272.0,1.220997]
[1732115668968,0.10711512,94304.0,94272.0,1.32811212]
[1732115669204,0.10711512,94304.0,94273.0,0.10711512]
[1732115669429,0.10711512,94304.0,94274.0,0.1]
[1732115669658,0.10711512,94304.0,94275.0,0.1]
[1732115669879,0.10934708,94314.0,94283.0,0.01]
[1732115670092,0.10711512,94313.0,94279.0,0.01]
[1732115670321,0.10711512,94313.0,94280.0,1.018911]
[1732115670766,0.10711512,94313.0,94281.0,0.198997]
[1732115670994,0.10711512,94313.0,94273.0,0.310582]
[1732115671442,0.10711512,94313.0,94278.0,0.01]
[1732115671716,0.10711512,94313.0,94275.0,0.1]
[1732115671938,0.10711512,94313.0,94271.0,0.1]
[1732115671939,0.13457012,94313.0,94271.0,0.1]
[1732115672151,0.01,94299.0,94270.0,0.0017146]
[1732115672361,0.10711512,94298.0,94270.0,0.0017146]
[1732115672582,0.10711512,94298.0,94271.0,0.779846]
[1732115672809,0.25,94311.0,94278.0,0.01]
[1732115673054,0.10711512,94310.0,94279.0,1.261422]
[1732115673311,0.10711512,94310.0,94280.0,0.596283]
[1732115673581,0.10711512,94310.0,94278.0,0.01]
[1732115674294,0.06211512,94310.0,94279.0,0.1]
[1732115674535,0.06211512,94310.0,94279.0,0.538101]
[1732115674768,0.06211512,94310.0,94281.0,0.1]
[1732115675002,0.0751,94314.0,94283.0,0.1]
[1732115675230,0.0751,94314.0,94287.0,0.01]
[1732115675464,0.10711512,94313.0,94285.0,0.1]
[1732115675716,0.0487,94316.0,94296.0,0.01]
[1732115675980,0.0487,94316.0,94298.0,0.1]
[1732115676467,0.0807,94314.0,94279.0,0.0017146]
[1732115676687,0.13176663,94313.0,94279.0,0.0017146]
[1732115676927,0.10711512,94313.0,94279.0,0.0017146]
[1732115677151,0.01,94304.0,94279.0,0.0017146]
[1732115677374,0.10711512,94303.0,94279.0,0.0017146]
[1732115677806,0.048,94297.0,94279.0,0.0017146]
[1732115678080,0.01,94292.0,94279.0,0.0017146]
[1732115678273,0.10711512,94291.0,94279.0,0.0017146]
[1732115678511,0.35711512,94291.0,94279.0,0.0017146]
[1732115679659,0.10711512,94291.0,94279.0,0.0017146]
[1732115681250,0.01965268,94290.0,94279.0,0.0017146]
[1732115681473,0.1267678,94289.0,94279.0,0.0017146]
[1732115681704,0.0482,94287.0,94270.0,0.0017146]
[1732115681934,0.01,94273.0,94229.0,0.03482349]
[1732115682146,0.1267678,94272.0,94229.0,0.03482349]
[1732115682364,0.1367678,94272.0,94229.0,0.03482349]
[1732115682585,0.01,94267.0,94229.0,0.03482349]
[1732115682817,0.10711512,94266.0,94229.0,0.03482349]
[1732115683920,0.03488196,94272.0,94216.0,0.01]
[1732115683921,0.023,94261.0,94216.0,0.01]
[1732115684143,0.106094,94256.0,94213.0,0.01]
[1732115684365,0.0921,94257.0,94212.0,0.01]
[1732115684366,0.15819713,94255.0,94212.0,0.01]
[1732115684642,0.01,94241.0,94200.0,0.01]
[1732115684860,0.17646267,94240.0,94199.0,0.01]
[1732115685082,0.05108201,94239.0,94196.0,0.0108538]
[1732115685298,0.12676267,94238.0,94199.0,0.01]
[1732115685509,0.01964755,94237.0,94199.0,0.01]
[1732115685732,0.0497,94240.0,94199.0,0.01]
[1732115685733,0.12676267,94236.0,94199.0,0.01]
[1732115685994,0.01964755,94235.0,94199.0,0.01]
[1732115686214,0.12673874,94234.0,94199.0,0.01]
[1732115686436,0.01962362,94233.0,94199.0,0.01]
[1732115686676,0.01962362,94233.0,94197.0,0.00106146]
[1732115686677,0.0756,94231.0,94196.0,0.0008538]
[1732115686899,0.10711512,94230.0,94196.0,0.0008538]
[1732115687155,0.01,94228.0,94196.0,0.0008538]
[1732115687356,0.12672799,94227.0,94196.0,0.0008538]
[1732115687575,0.02961287,94226.0,94196.0,0.0008538]
[1732115687802,0.10711512,94225.0,94196.0,0.0008538]
[1732115688263,0.0479,94224.0,94196.0,0.0008538]
[1732115688497,0.25,94221.0,94196.0,0.0008538]
[1732115688720,0.10711512,94220.0,94196.0,0.0008538]
[1732115688948,0.01958782,94219.0,94196.0,0.0008538]
[1732115689170,0.06211512,94218.0,94196.0,0.0008538]
[1732115690151,0.25,94222.0,94196.0,0.0008538]
[1732115690383,0.10711512,94221.0,94196.0,0.0008538]
[1732115691073,0.0479,94224.0,94196.0,0.10796892]
[1732115691291,0.0479,94224.0,94197.0,0.1]
[1732115691760,0.5399,94229.0,94203.0,0.01]
[1732115691985,0.5399,94229.0,94204.0,0.10711512]
[1732115692218,0.5399,94229.0,94205.0,0.1]
[1732115692451,0.03466822,94238.0,94205.0,0.20711512]
[1732115692679,0.10711512,94237.0,94205.0,0.20711512]
[1732115692900,0.10711512,94237.0,94206.0,0.11711512]
[1732115693132,0.0771,94245.0,94217.0,0.01]
[1732115693350,0.0771,94245.0,94218.0,0.10711512]
[1732115693632,0.11085961,94245.0,94218.0,0.10711512]
[1732115693859,0.0477,94255.0,94219.0,0.11]
[1732115694090,0.14132669,94254.0,94222.0,0.01]
[1732115694312,0.10711512,94254.0,94224.0,0.1]
[1732115695263,0.0771,94261.0,94228.0,0.01]
[1732115695487,0.10711512,94260.0,94230.0,0.1]
[1732115697768,0.26,94273.0,94231.0,0.11711512]
[1732115697986,0.1266905,94272.0,94232.0,0.1]
[1732115698202,0.01957538,94271.0,94232.0,0.1]
[1732115698418,0.1266905,94270.0,94234.0,0.1]
[1732115698649,0.01,94265.0,94232.0,0.00106108]
[1732115698886,0.14747538,94269.0,94218.0,0.0008582]
[1732115698887,0.01,94249.0,94218.0,0.0008582]
[1732115699117,0.01,94237.0,94201.0,0.0040582]
[1732115699793,0.0752,94238.0,94201.0,0.0040582]
[1732115700282,0.0752,94238.0,94209.0,0.0040582]
[1732115700505,0.0497,94241.0,94209.0,0.0040582]
[1732115700953,0.10711512,94240.0,94210.0,0.1]
[1732115701857,0.10711512,94240.0,94196.0,0.0371583]
[1732115701858,0.01,94237.0,94196.0,0.0351583]
[1732115702112,0.01,94233.0,94196.0,0.0008538]
[1732115702335,0.10711512,94232.0,94196.0,0.0008538]
[1732115702851,0.5399,94240.0,94220.0,0.0040582]
[1732115703087,0.5399,94240.0,94197.0,0.03172904]
[1732115703088,0.25,94243.0,94225.0,0.0040582]
[1732115703305,0.047,94242.0,94215.0,0.0040582]
[1732115703531,0.0059418,94255.0,94216.0,0.1]
[1732115703754,0.12669238,94254.0,94224.0,0.0040582]
[1732115704038,0.048,94257.0,94232.0,0.0040582]
[1732115704264,0.01958199,94256.0,94236.0,0.0040582]
[1732115704544,0.01958199,94256.0,94233.0,0.10817623]
[1732115704545,0.0017164,94260.0,94259.0,0.0040582]
[1732115704771,0.0017164,94260.0,94259.0,0.11117332]
[1732115704994,0.25,94287.0,94264.0,0.0040582]
[1732115705235,0.01959538,94286.0,94264.0,0.11117332]
[1732115705495,0.01959538,94285.0,94265.0,0.1]
[1732115705733,0.25,94287.0,94265.0,0.05502775]
[1732115705974,0.10711512,94286.0,94250.0,0.0040582]
[1732115706228,0.26,94281.0,94237.0,0.0040582]
[1732115706448,0.26,94281.0,94233.0,0.0796]
[1732115706449,0.01,94273.0,94238.0,0.11117332]
[1732115706678,0.10711512,94272.0,94238.0,0.11117332]
[1732115707824,0.10711512,94272.0,94228.0,0.08033674]
[1732115707825,0.01963933,94271.0,94228.0,0.03483674]
[1732115708081,0.12675445,94270.0,94230.0,0.1]
[1732115708346,0.01963933,94269.0,94233.0,0.0040582]
[1732115708560,0.10711512,94268.0,94238.0,0.0040582]
[1732115708781,0.01963933,94269.0,94244.0,0.0040582]
[1732115709025,0.212167,94265.0,94238.0,0.0040582]
[1732115709241,0.212167,94265.0,94215.0,0.0040582]
[1732115709242,0.01,94253.0,94215.0,0.0040582]
[1732115709455,0.01,94253.0,94208.0,0.11117332]
[1732115709456,0.10711512,94252.0,94208.0,0.11117332]
[1732115709688,0.25,94247.0,94215.0,0.0040582]
[1732115709909,0.10711512,94246.0,94215.0,0.0040582]
[1732115710134,0.25,94247.0,94229.0,0.0040582]
[1732115710471,0.25,94247.0,94233.0,0.0040582]
[1732115710694,0.5399,94260.0,94233.0,0.0040582]
[1732115710921,0.5399,94260.0,94231.0,0.1]
[1732115710922,0.5399,94260.0,94242.0,0.0040582]
[1732115711150,0.5399,94260.0,94231.0,0.10106111]
[1732115711151,0.25,94269.0,94244.0,0.1]
[1732115711378,0.25,94269.0,94246.0,0.0826]
[1732115711631,0.0831,94297.0,94246.0,0.0826]
[1732115711632,0.0831,94297.0,94247.0,0.13011512]
[1732115711881,0.001717,94271.0,94247.0,0.13011512]
[1732115712333,0.001717,94271.0,94251.0,0.033]
[1732115712571,0.001717,94271.0,94252.0,0.10817578]
[1732115712799,0.0831,94310.0,94259.0,0.023]
[1732115713016,0.0831,94310.0,94261.0,0.023]
[1732115713240,0.25,94313.0,94265.0,0.0451]
[1732115713497,0.10711512,94303.0,94267.0,0.1]
[1732115713736,0.10711512,94303.0,94268.0,0.10711512]
[1732115713964,0.10711512,94303.0,94269.0,0.1]
[1732115714183,0.10711512,94303.0,94269.0,0.20711512]
[1732115714651,0.10711512,94297.0,94247.0,0.18851164]
[1732115714903,0.01,94286.0,94248.0,0.10711512]
[1732115715134,0.10711512,94285.0,94248.0,0.10711512]
[1732115715594,0.10711512,94285.0,94238.0,0.03370151]
[1732115715824,0.10711512,94285.0,94250.0,0.1]
[1732115716060,0.10711512,94285.0,94252.0,0.1]
[1732115717217,0.10711512,94285.0,94241.0,0.10106089]
[1732115717439,0.10711512,94285.0,94246.0,0.03460966]
[1732115717673,0.10711512,94285.0,94248.0,0.1]
[1732115717893,0.10711512,94285.0,94248.0,0.20711512]
[1732115719237,0.06211512,94285.0,94249.0,0.10711512]
[1732115719456,0.06211512,94285.0,94250.0,0.1]
[1732115719680,0.25,94297.0,94252.0,0.1]
[1732115719903,0.10711512,94296.0,94253.0,0.10711512]
[1732115720133,0.10711512,94296.0,94254.0,0.10106078]
[1732115720388,0.25,94297.0,94254.0,0.10106078]
[1732115720389,0.25,94297.0,94257.0,0.023]
[1732115720615,0.1257,94302.0,94257.0,0.023]
[1732115720616,0.1257,94302.0,94259.0,0.1]
[1732115720835,0.10711512,94301.0,94261.0,0.1]
[1732115721059,0.10711512,94301.0,94263.0,0.1]
[1732115721288,0.10711512,94301.0,94264.0,0.10711512]
[1732115721511,0.10711512,94301.0,94265.0,0.1]
[1732115722621,0.10711512,94301.0,94261.0,0.03433894]
[1732115722851,0.10711512,94301.0,94262.0,0.1]
[1732115723121,0.01,94298.0,94262.0,0.1]
[1732115723356,0.0012,94294.0,94262.0,0.1]
[1732115723578,0.10711512,94293.0,94262.0,0.1]
[1732115724019,0.10711512,94293.0,94251.0,0.10106086]
[1732115724247,0.10711512,94293.0,94253.0,0.1]
[1732115724471,0.10711512,94293.0,94254.0,0.10711512]
[1732115724694,0.0012,94294.0,94255.0,0.023]
[1732115724911,0.0012,94294.0,94256.0,0.1081758]
[1732115725129,0.0012,94294.0,94256.0,0.10711512]
[1732115725356,0.10831512,94294.0,94256.0,0.10711512]
[1732115725640,0.10711512,94293.0,94256.0,0.10711512]
[1732115726525,0.10711512,94293.0,94257.0,0.1]
[1732115726779,0.10711512,94293.0,94258.0,0.10711512]
[1732115727041,0.10711512,94293.0,94259.0,0.1]
[1732115727295,0.002916,94294.0,94260.0,0.00106082]
[1732115727524,0.002916,94294.0,94265.0,0.123]
[1732115727743,0.002916,94294.0,94270.0,0.10711512]
[1732115727994,0.002916,94294.0,94275.0,0.123]
[1732115728214,0.002916,94294.0,94292.0,0.1]
[1732115728443,0.0008579,94304.0,94294.0,0.1]
[1732115728687,0.0008579,94304.0,94295.0,0.10711512]
[1732115728908,0.0008579,94304.0,94296.0,0.1]
[1732115729119,0.0008579,94304.0,94296.0,0.20711512]
[1732115729572,0.0008579,94304.0,94298.0,0.1]
[1732115730983,0.0008579,94304.0,94277.0,0.03358879]
[1732115731203,0.0008579,94304.0,94283.0,0.10711512]